fUSD/lending_fUSD_20241223
["ID","MTS","AMOUNT","RATE_DAILY","PERIOD"]
[346415777,1734951051606,-5920.47,0.00019178,2]
[346415778,1734951051616,-22782.42,0.00019178,2]
[346415779,1734951051625,-500.0,0.00019178,2]
[346415780,1734951051635,-647.25,0.00019178,2]
[346415781,1734951051647,-8431.71,0.00019178,2]
[346415782,1734951051658,-749.63,0.00019178,2]
[346415783,1734951051668,-500.0,0.00019178,2]
[346415784,1734951051677,-4809.7,0.00019178,2]
[346415785,1734951051686,-500.0,0.00019178,2]
[346415786,1734951051698,-500.0,0.00019178,2]
[346415787,1734951051707,-500.0,0.00019178,2]
[346415788,1734951051717,-500.0,0.00019178,2]
[346415789,1734951051726,-562.91,0.00019178,2]
[346415790,1734951051736,-29195.56,0.00019178,2]
[346415791,1734951051746,-500.0,0.00019178,2]
[346415792,1734951051755,-500.0,0.00019178,2]
[346415793,1734951051764,-500.0,0.00019178,2]
[346415794,1734951051774,-1294.59,0.00019178,2]
[346415795,1734951051783,-500.0,0.00019178,2]
[346415796,1734951051792,-500.0,0.00019178,2]
[346415797,1734951051802,-3249.82,0.00019178,2]
[346415798,1734951051811,-603.34,0.00019178,2]
[346415799,1734951051820,-500.0,0.00019178,2]
[346415800,1734951051830,-500.0,0.00019178,2]
[346415801,1734951051839,-13348.53,0.00019178,2]
[346415802,1734951051848,-1504.5,0.00019178,2]
[346415803,1734951051858,-503.12453851,0.00019178,2]
[346415804,1734951051867,-1184.6,0.00019178,2]
[346415805,1734951051876,-500.0,0.00019178,2]
[346415806,1734951051886,-500.0,0.00019178,2]
[346415807,1734951051897,-500.0,0.00019178,2]
[346415808,1734951051906,-2677.12,0.00019178,2]
[346415809,1734951051916,-430.03443239,0.00019178,2]
[346415810,1734951051925,-500.0,0.00019178,2]
[346415811,1734951051935,-500.0,0.00019178,2]
[346415812,1734951051944,-1073.01,0.00019178,2]
[346415813,1734951051954,-500.0,0.00019178,2]
[346415814,1734951051963,-1842.39,0.00019178,2]
[346415815,1734951051972,-500.0,0.00019178,2]
[346415816,1734951051981,-2684.21,0.00019178,2]
[346415817,1734951051991,-500.0,0.00019178,2]
[346415818,1734951052000,-4476.85,0.00019178,2]
[346415819,1734951052009,-4623.23,0.00019178,2]
[346415820,1734951052018,-500.0,0.00019178,2]
[346415821,1734951052028,-500.0,0.00019178,2]
[346415822,1734951052037,-500.0,0.00019178,2]
[346415823,1734951052046,-1666.35,0.00019178,2]
[346415824,1734951052055,-500.0,0.00019178,2]
[346415825,1734951052064,-500.0,0.00019178,2]
[346415826,1734951052073,-500.0,0.00019178,2]
[346415827,1734951052083,-801.5,0.00019178,2]
[346415828,1734951052093,-500.0,0.00019178,2]
[346415829,1734951052102,-500.0,0.00019178,2]
[346415830,1734951052111,-652.57,0.00019178,2]
[346415831,1734951052120,-500.0,0.00019178,2]
[346415832,1734951052129,-9441.43,0.00019178,2]
[346415833,1734951052138,-500.0,0.00019178,2]
[346415834,1734951052149,-500.0,0.00019178,2]
[346415835,1734951052158,-500.0,0.00019178,2]
[346415836,1734951052167,-500.0,0.00019178,2]
[346415837,1734951052177,-2279.83,0.00019178,2]
[346415838,1734951052186,-500.0,0.00019178,2]
[346415839,1734951052196,-500.0,0.00019178,2]
[346415840,1734951052205,-500.0,0.00019178,2]
[346415841,1734951052326,-500.0,0.00019178,2]
[346415842,1734951052346,-1181.66,0.00019178,2]
[346415843,1734951052356,-1007.14,0.00019178,2]
[346415844,1734951052365,-674.38,0.00019178,2]
[346415845,1734951052375,-500.0,0.00019178,2]
[346415846,1734951052384,-625.77,0.00019178,2]
[346415847,1734951052395,-500.0,0.00019178,2]
[346415848,1734951052405,-502.78,0.00019178,2]
[346415849,1734951052414,-1078.52,0.00019178,2]
[346415850,1734951052423,-1081.12,0.00019178,2]
[346415851,1734951052432,-1081.12,0.00019178,2]
[346415852,1734951052441,-500.0,0.00019178,2]
[346415853,1734951052451,-1081.12,0.00019178,2]
[346415854,1734951052461,-1081.12,0.00019178,2]
[346415855,1734951052470,-1081.12,0.00019178,2]
[346415856,1734951052479,-1081.12,0.00019178,2]
[346415857,1734951052489,-10017.7,0.00019178,2]
[346415858,1734951052500,-1081.12,0.00019178,2]
[346415859,1734951052510,-596.03,0.00019178,2]
[346415860,1734951052519,-1081.12,0.00019178,2]
[346415861,1734951052530,-1081.12,0.00019178,2]
[346415862,1734951052539,-1081.12,0.00019178,2]
[346415863,1734951052549,-500.0,0.00019178,2]
[346415864,1734951052559,-5359.5,0.00019178,2]
[346415865,1734951052568,-500.0,0.00019178,2]
[346415866,1734951052578,-500.0,0.00019178,2]
[346415867,1734951052588,-500.0,0.00019178,2]
[346415868,1734951052597,-500.0,0.00019178,2]
[346415869,1734951052607,-500.0,0.00019178,2]
[346415870,1734951052617,-500.0,0.00019178,2]
[346415871,1734951052627,-500.0,0.00019178,2]
[346415872,1734951052636,-1081.12,0.00019178,2]
[346415873,1734951052647,-500.0,0.00019178,2]
[346415874,1734951052659,-500.0,0.00019178,2]
[346415875,1734951052668,-1081.12,0.00019178,2]
[346415876,1734951052678,-515.01,0.00019178,2]
[346415877,1734951052688,-500.0,0.00019178,2]
[346415878,1734951052697,-1081.12,0.00019178,2]
[346415879,1734951052707,-1081.12,0.00019178,2]
[346415880,1734951052716,-1081.12,0.00019178,2]
[346415881,1734951052726,-500.0,0.00019178,2]
[346415882,1734951052735,-1081.12,0.00019178,2]
[346415883,1734951052744,-576.11,0.00019178,2]
[346415884,1734951052754,-1081.12,0.00019178,2]
[346415885,1734951052763,-735.02,0.00019178,2]
[346415886,1734951052772,-1081.12,0.00019178,2]
[346415887,1734951052781,-1081.12,0.00019178,2]
[346415888,1734951052791,-500.0,0.00019178,2]
[346415889,1734951052801,-1081.12,0.00019178,2]
[346415890,1734951052811,-1081.12,0.00019178,2]
[346415891,1734951052821,-500.0,0.00019178,2]
[346415892,1734951052830,-500.0,0.00019178,2]
[346415893,1734951052840,-500.0,0.00019178,2]
[346415894,1734951052850,-1081.12,0.00019178,2]
[346415895,1734951052860,-1081.12,0.00019178,2]
[346415896,1734951052870,-1081.21,0.00019178,2]
[346415897,1734951052879,-500.0,0.00019178,2]
[346415898,1734951052890,-500.0,0.00019178,2]
[346415899,1734951052900,-500.0,0.00019178,2]
[346415900,1734951052910,-500.0,0.00019178,2]
[346415901,1734951052920,-500.0,0.00019178,2]
[346415902,1734951052929,-1251.18,0.00019178,2]
[346415903,1734951052939,-500.0,0.00019178,2]
[346415904,1734951052949,-500.0,0.00019178,2]
[346415905,1734951052959,-500.0,0.00019178,2]
[346415906,1734951052969,-503.14,0.00019178,2]
[346415907,1734951052980,-4000.0,0.00019178,2]
[346415908,1734951052991,-202.74,0.00019178,2]
[346415909,1734951053001,-203.73,0.00019178,2]
[346415910,1734951053010,-977.37,0.00019178,2]
[346415911,1734951053020,-436.35,0.00019178,2]
[346415912,1734951053030,-365.19,0.00019178,2]
[346415913,1734951053040,-185.15,0.00019178,2]
[346415914,1734951053050,-150.52,0.00019178,2]
[346415915,1734951053060,-202.43,0.0001919,2]
[346415916,1734951053069,-202.82,0.0001919,2]
[346415917,1734951053078,-237.38877935,0.00019215,2]
[346415918,1734951053089,-2200.0,0.000193,7]
[346415919,1734951053099,-150.0,0.00019314,2]
[346415920,1734951053108,-176.50499016,0.00019352,2]
[346415921,1734951053117,-237.38877935,0.00019352,2]
[346415922,1734951053127,-400.0,0.000194,7]
[346415923,1734951053137,-13502.73953093,0.000194,5]
[346415924,1734951053148,-1512.0,0.00019407,2]
[346415925,1734951053157,-153.0,0.00019445,2]
[346415926,1734951053167,-153.0,0.00019445,2]
[346415927,1734951053176,-153.0,0.00019445,2]
[346415928,1734951053185,-153.0,0.00019445,2]
[346415929,1734951053195,-153.0,0.00019445,2]
[346415930,1734951053205,-153.0,0.00019445,2]
[346415931,1734951053214,-153.0,0.00019445,2]
[346415932,1734951053224,-153.0,0.00019445,2]
[346415933,1734951053233,-153.0,0.00019445,2]
[346415934,1734951053243,-153.0,0.00019445,2]
[346415935,1734951053252,-153.0,0.00019446,2]
[346415936,1734951053262,-153.0,0.00019446,2]
[346415937,1734951053271,-153.0,0.00019446,2]
[346415938,1734951053281,-153.0,0.00019446,2]
[346415939,1734951053290,-153.0,0.00019446,2]
[346415940,1734951053300,-153.0,0.00019446,2]
[346415941,1734951053312,-153.0,0.00019446,2]
[346415942,1734951053322,-153.0,0.00019446,2]
[346415943,1734951053332,-153.0,0.00019446,2]
[346415944,1734951053342,-153.0,0.00019446,2]
[346415945,1734951053352,-153.0,0.00019446,2]
[346415946,1734951053362,-153.0,0.00019447,2]
[346415947,1734951053372,-153.0,0.00019447,2]
[346415948,1734951053381,-153.0,0.00019447,2]
[346415949,1734951053393,-153.0,0.00019447,2]
[346415950,1734951053403,-153.0,0.00019447,2]
[346415951,1734951053414,-153.0,0.00019447,2]
[346415952,1734951053423,-153.0,0.00019447,2]
[346415953,1734951053433,-500.0,0.0001945,2]
[346415954,1734951053443,-509.23,0.0001945,2]
[346415955,1734951053453,-152.70496243,0.00019451,2]
[346415956,1734951053463,-500.0,0.00019451,2]
[346415957,1734951053473,-500.0,0.00019451,2]
[346415958,1734951053483,-509.23,0.00019451,2]
[346415959,1734951053492,-509.23,0.00019451,2]
[346415960,1734951053502,-509.23,0.00019451,2]
[346415961,1734951053512,-509.23,0.00019451,2]
[346415962,1734951053521,-509.23,0.00019451,2]
[346415963,1734951053530,-153.0,0.00019451,2]
[346415964,1734951053540,-153.0,0.00019451,2]
[346415965,1734951053549,-153.0,0.00019451,2]
[346415966,1734951053560,-153.0,0.00019451,2]
[346415967,1734951053569,-151.0,0.00019452,2]
[346415968,1734951053579,-151.0,0.00019452,2]
[346415969,1734951053589,-151.0,0.00019452,2]
[346415970,1734951053599,-151.0,0.00019452,2]
[346415971,1734951053608,-151.0,0.00019452,2]
[346415972,1734951053618,-151.0,0.00019452,2]
[346415973,1734951053628,-151.0,0.00019452,2]
[346415974,1734951053638,-230.871679,0.00019452,2]
[346415975,1734951053650,-151.0,0.00019452,2]
[346415976,1734951053660,-500.0,0.00019452,2]
[346415977,1734951053671,-500.0,0.00019452,2]
[346415978,1734951053681,-500.0,0.00019452,2]
[346415979,1734951053691,-629.53722905,0.00019452,2]
[346415980,1734951053702,-500.0,0.00019452,2]
[346415981,1734951053712,-518.84178334,0.00019452,2]
[346415982,1734951053723,-500.0,0.00019452,2]
[346415983,1734951053736,-316.80253924,0.00019452,2]
[346415984,1734951053746,-522.64955959,0.00019452,2]
[346415985,1734951053756,-500.0,0.00019452,2]
[346415986,1734951053766,-298.87538834,0.00019452,2]
[346415987,1734951053776,-500.0,0.00019452,2]
[346415988,1734951053786,-500.0,0.00019452,2]
[346415989,1734951053796,-500.0,0.00019452,2]
[346415990,1734951053806,-500.0,0.00019452,2]
[346415991,1734951053816,-500.0,0.00019452,2]
[346415992,1734951053826,-500.0,0.00019452,2]
[346415993,1734951053835,-500.0,0.00019452,2]
[346415994,1734951053845,-500.0,0.00019452,2]
[346415995,1734951053854,-500.0,0.00019452,2]
[346415996,1734951053863,-500.0,0.00019452,2]
[346415997,1734951053873,-500.0,0.00019452,2]
[346415998,1734951053882,-500.0,0.00019452,2]
[346415999,1734951053892,-500.0,0.00019452,2]
[346416000,1734951053901,-500.0,0.00019452,2]
[346416001,1734951053911,-500.0,0.00019452,2]
[346416002,1734951053921,-500.0,0.00019452,2]
[346416003,1734951053930,-500.0,0.00019452,2]
[346416004,1734951053940,-500.0,0.00019452,2]
[346416005,1734951053950,-500.0,0.00019452,2]
[346416006,1734951053959,-500.0,0.00019452,2]
[346416007,1734951053969,-500.0,0.00019452,2]
[346416008,1734951053979,-500.0,0.00019452,2]
[346416009,1734951053988,-262.22426117,0.00019452,2]
[346416010,1734951053998,-500.0,0.00019452,2]
[346416011,1734951054007,-500.0,0.00019452,2]
[346416012,1734951054017,-510.34200495,0.00019452,2]
[346416013,1734951054026,-484.80414957,0.00019452,2]
[346416014,1734951054035,-500.0,0.00019452,2]
[346416015,1734951054045,-500.0,0.00019452,2]
[346416016,1734951054055,-407.44510465,0.00019452,2]
[346416017,1734951054064,-500.0,0.00019452,2]
[346416018,1734951054074,-500.0,0.00019452,2]
[346416019,1734951054083,-500.0,0.00019452,2]
[346416020,1734951054092,-156.97487043,0.00019452,2]
[346416021,1734951054102,-500.0,0.00019452,2]
[346416022,1734951054111,-2000.0,0.00019452,2]
[346416023,1734951054120,-669.36,0.00019452,2]
[346416024,1734951054130,-500.0,0.00019452,2]
[346416025,1734951054139,-506.24223026,0.00019452,2]
[346416026,1734951054149,-500.0,0.00019452,2]
[346416027,1734951054158,-500.0,0.00019452,2]
[346416028,1734951054167,-200.0,0.00019452,2]
[346416029,1734951054176,-510.12476394,0.00019452,2]
[346416030,1734951054187,-500.0,0.00019452,2]
[346416031,1734951054196,-500.0,0.00019452,2]
[346416032,1734951054205,-500.0,0.00019452,2]
[346416033,1734951054215,-500.0,0.00019452,2]
[346416034,1734951054224,-504.23601594,0.00019452,2]
[346416035,1734951054233,-500.0,0.00019452,2]
[346416036,1734951054243,-500.0,0.00019452,2]
[346416037,1734951054252,-500.0,0.00019452,2]
[346416038,1734951054261,-500.0,0.00019452,2]
[346416039,1734951054270,-500.0,0.00019452,2]
[346416040,1734951054280,-500.0,0.00019452,2]
[346416041,1734951054289,-500.0,0.00019452,2]
[346416042,1734951054298,-742.6,0.00019452,2]
[346416043,1734951054308,-156.037694,0.00019452,2]
[346416044,1734951054317,-3363.992444,0.00019452,2]
[346416045,1734951054326,-500.0,0.00019452,2]
[346416046,1734951054335,-500.0,0.00019452,2]
[346416047,1734951054344,-500.0,0.00019452,2]
[346416048,1734951054353,-500.0,0.00019452,2]
[346416049,1734951054363,-500.0,0.00019452,2]
[346416050,1734951054373,-2994.969783,0.00019452,2]
[346416051,1734951054382,-500.0,0.00019452,2]
[346416052,1734951054391,-500.0,0.00019452,2]
[346416053,1734951054400,-500.0,0.00019452,2]
[346416054,1734951054410,-500.0,0.00019452,2]
[346416055,1734951054420,-500.0,0.00019452,2]
[346416056,1734951054430,-500.0,0.00019452,2]
[346416057,1734951054439,-1278.3,0.00019452,2]
[346416058,1734951054449,-500.0,0.00019452,2]
[346416059,1734951054458,-500.0,0.00019452,2]
[346416060,1734951054467,-500.0,0.00019452,2]
[346416061,1734951054476,-500.0,0.00019452,2]
[346416062,1734951054486,-500.0,0.00019452,2]
[346416063,1734951054495,-500.0,0.00019452,2]
[346416064,1734951054504,-500.0,0.00019452,2]
[346416065,1734951054513,-500.0,0.00019452,2]
[346416066,1734951054810,-500.0,0.00019452,2]
[346416067,1734951054834,-500.0,0.00019452,2]
[346416068,1734951054844,-500.0,0.00019452,2]
[346416069,1734951054853,-500.0,0.00019452,2]
[346416070,1734951054863,-500.0,0.00019452,2]
[346416071,1734951054872,-500.0,0.00019452,2]
[346416072,1734951054881,-440.85066627,0.00019452,2]
[346416073,1734951054892,-198.25680468,0.00019452,2]
[346416074,1734951054901,-814.12,0.00019452,2]
[346416075,1734951054911,-500.0,0.00019452,2]
[346416076,1734951054921,-500.0,0.00019452,2]
[346416077,1734951054931,-500.0,0.00019452,2]
[346416078,1734951054941,-500.0,0.00019452,2]
[346416079,1734951054951,-500.0,0.00019452,2]
[346416080,1734951054961,-732.17,0.00019452,2]
[346416081,1734951054970,-548.44,0.00019452,2]
[346416082,1734951054980,-500.0,0.00019452,2]
[346416083,1734951054990,-521.18,0.00019452,2]
[346416084,1734951055000,-500.0,0.00019452,2]
[346416085,1734951055009,-500.0,0.00019452,2]
[346416086,1734951055018,-500.0,0.00019452,2]
[346416087,1734951055028,-501.38946582,0.00019452,2]
[346416088,1734951055037,-592.88,0.00019452,2]
[346416089,1734951055047,-500.69148134,0.00019452,2]
[346416090,1734951055056,-500.0,0.00019452,2]
[346416091,1734951055066,-500.0,0.00019452,2]
[346416092,1734951055075,-502.37656309,0.00019452,2]
[346416093,1734951055084,-500.0,0.00019452,2]
[346416094,1734951055094,-500.0,0.00019452,2]
[346416095,1734951055104,-500.0,0.00019452,2]
[346416096,1734951055114,-500.0,0.00019452,2]
[346416097,1734951055124,-500.0,0.00019452,2]
[346416098,1734951055134,-578.68,0.00019452,2]
[346416099,1734951055143,-500.0,0.00019452,2]
[346416100,1734951055152,-628.24,0.00019452,2]
[346416101,1734951055162,-500.0,0.00019452,2]
[346416102,1734951055171,-938.4,0.00019452,2]
[346416103,1734951055181,-500.0,0.00019452,2]
[346416104,1734951055190,-505.18413198,0.00019452,2]
[346416105,1734951055199,-500.0,0.00019452,2]
[346416106,1734951055208,-732.86,0.00019452,2]
[346416107,1734951055218,-500.0,0.00019452,2]
[346416108,1734951055227,-500.0,0.00019452,2]
[346416109,1734951055237,-500.0,0.00019452,2]
[346416110,1734951055246,-500.0,0.00019452,2]
[346416111,1734951055255,-500.0,0.00019452,2]
[346416112,1734951055265,-500.0,0.00019452,2]
[346416113,1734951055274,-512.74,0.00019452,2]
[346416114,1734951055283,-500.0,0.00019452,2]
[346416115,1734951055293,-501.87231997,0.00019452,2]
[346416116,1734951055302,-500.0,0.00019452,2]
[346416117,1734951055312,-500.0,0.00019452,2]
[346416118,1734951055322,-500.0,0.00019452,2]
[346416119,1734951055331,-500.0,0.00019452,2]
[346416120,1734951055341,-844.16,0.00019452,2]
[346416121,1734951055350,-500.0,0.00019452,2]
[346416122,1734951055360,-500.0,0.00019452,2]
[346416123,1734951055370,-500.0,0.00019452,2]
[346416124,1734951055379,-500.0,0.00019452,2]
[346416125,1734951055389,-500.0,0.00019452,2]
[346416126,1734951055399,-500.0,0.00019452,2]
[346416127,1734951055409,-500.0,0.00019452,2]
[346416128,1734951055419,-500.0,0.00019452,2]
[346416129,1734951055429,-613.91,0.00019452,2]
[346416130,1734951055438,-500.0,0.00019452,2]
[346416131,1734951055448,-500.0,0.00019452,2]
[346416132,1734951055458,-500.0,0.00019452,2]
[346416133,1734951055468,-500.0,0.00019452,2]
[346416134,1734951055477,-602.58,0.00019452,2]
[346416135,1734951055487,-500.0,0.00019452,2]
[346416136,1734951055496,-500.0,0.00019452,2]
[346416137,1734951055506,-500.0,0.00019452,2]
[346416138,1734951055515,-500.0,0.00019452,2]
[346416139,1734951055525,-500.0,0.00019452,2]
[346416140,1734951055534,-500.0,0.00019452,2]
[346416141,1734951055543,-500.0,0.00019452,2]
[346416142,1734951055553,-500.0,0.00019452,2]
[346416143,1734951055562,-500.0,0.00019452,2]
[346416144,1734951055572,-500.0,0.00019452,2]
[346416145,1734951055581,-591.84650617,0.00019452,2]
[346416146,1734951055591,-500.0,0.00019452,2]
[346416147,1734951055601,-500.0,0.00019452,2]
[346416148,1734951055610,-500.0,0.00019452,2]
[346416149,1734951055621,-500.0,0.00019452,2]
[346416150,1734951055630,-300.0,0.00019452,2]
[346416151,1734951055640,-500.0,0.00019452,2]
[346416152,1734951055653,-230.79189841,0.00019452,2]
[346416153,1734951055662,-500.0,0.00019452,2]
[346416154,1734951055672,-500.0,0.00019452,2]
[346416155,1734951055682,-500.0,0.00019452,2]
[346416156,1734951055691,-500.0,0.00019452,2]
[346416157,1734951055701,-500.0,0.00019452,2]
[346416158,1734951055711,-500.0,0.00019452,2]
[346416159,1734951055721,-500.0,0.00019452,2]
[346416160,1734951055732,-500.0,0.00019452,2]
[346416161,1734951055743,-500.0,0.00019452,2]
[346416162,1734951055753,-500.0,0.00019452,2]
[346416163,1734951055763,-519.76728113,0.00019452,2]
[346416164,1734951055773,-500.0,0.00019452,2]
[346416165,1734951055782,-500.0,0.00019452,2]
[346416166,1734951055792,-500.0,0.00019452,2]
[346416167,1734951055801,-500.0,0.00019452,2]
[346416168,1734951055811,-500.0,0.00019452,2]
[346416169,1734951055821,-500.0,0.00019452,2]
[346416170,1734951055831,-498.9255948,0.00019452,2]
[346416171,1734951056460,-1.0744052,0.00019452,2]
[346416172,1734951056471,-368.04829688,0.00019452,2]
[346416173,1734951056526,-283.821,0.00019452,2]
[346416174,1734951056538,-207.67070312,0.00019452,2]
[346416175,1734951056547,-140.80372991,0.00019452,2]
[346416176,1734951056559,-359.19627009,0.00019452,2]
[346416177,1734951056568,-500.0,0.00019452,2]
[346416178,1734951056578,-500.0,0.00019452,2]
[346416179,1734951056588,-149.89394654,0.00019452,2]
[346416180,1734951056600,-416.64605346,0.00019452,2]
[346416181,1734951056609,-500.0,0.00019452,2]
[346416182,1734951056618,-500.0,0.00019452,2]
[346416183,1734951056628,-500.0,0.00019452,2]
[346416184,1734951056637,-500.0,0.00019452,2]
[346416185,1734951056651,-946.1,0.00019452,2]
[346416186,1734951056661,-500.0,0.00019452,2]
[346416187,1734951056670,-500.0,0.00019452,2]
[346416188,1734951056680,-500.0,0.00019452,2]
[346416189,1734951056690,-500.0,0.00019452,2]
[346416190,1734951056699,-500.0,0.00019452,2]
[346416191,1734951056710,-776.97,0.00019452,2]
[346416192,1734951056720,-500.0,0.00019452,2]
[346416193,1734951056731,-703.34,0.00019452,2]
[346416194,1734951056741,-500.0,0.00019452,2]
[346416195,1734951056751,-500.0,0.00019452,2]
[346416196,1734951056760,-61.46276804,0.00019452,2]
[346416197,1734951056773,-438.53723196,0.00019452,2]
[346416198,1734951056783,-500.0,0.00019452,2]
[346416199,1734951056792,-591.47485643,0.00019452,2]
[346416200,1734951056801,-193.0864604,0.00019452,2]
[346416201,1734951056820,-306.9135396,0.00019452,2]
[346416202,1734951056830,-500.0,0.00019452,2]
[346416203,1734951056840,-346.57893214,0.00019452,2]
[346416204,1734951056852,-165.3011397,0.00019452,2]
[346416205,1734951056861,-118.9988603,0.00019452,2]
[346416206,1734951056873,-381.0011397,0.00019452,2]
[346416207,1734951056883,-500.0,0.00019452,2]
[346416208,1734951056893,-523.94,0.00019452,2]
[346416209,1734951056902,-535.97,0.00019452,2]
[346416210,1734951056913,-500.0,0.00019452,2]
[346416211,1734951056922,-500.0,0.00019452,2]
[346416212,1734951056932,-250.0888603,0.00019452,2]
[346416213,1734951057035,-249.9111397,0.00019452,2]
[346416214,1734951057045,-202.9888603,0.00019452,2]
[346416215,1734951057056,-297.0111397,0.00019452,2]
[346416216,1734951057065,-131.8888603,0.00019452,2]
[346416217,1734951057081,-368.1111397,0.00019452,2]
[346416218,1734951057090,-500.0,0.00019452,2]
[346416219,1734951057100,-703.75,0.00019452,2]
[346416220,1734951057109,-500.0,0.00019452,2]
[346416221,1734951057119,-500.0,0.00019452,2]
[346416222,1734951057128,-500.0,0.00019452,2]
[346416223,1734951057138,-500.0,0.00019452,2]
[346416224,1734951057148,-500.0,0.00019452,2]
[346416225,1734951057158,-500.0,0.00019452,2]
[346416226,1734951057167,-219.31716188,0.00019452,2]
[346416227,1734951057179,-280.68283812,0.00019452,2]
[346416228,1734951057189,-177.31850771,0.00019452,2]
[346416229,1734951057362,-500.0,0.00019178,2]
[346416230,1734951057371,-322.68149229,0.00019452,2]
[346416231,1734951057381,-644.34,0.00019452,2]
[346416232,1734951057390,-500.0,0.00019452,2]
[346416233,1734951057401,-500.0,0.00019452,2]
[346416234,1734951057410,-500.0,0.00019452,2]
[346416235,1734951057420,-500.0,0.00019452,2]
[346416236,1734951057430,-500.0,0.00019452,2]
[346416237,1734951057439,-500.0,0.00019452,2]
[346416238,1734951057448,-12.18599879,0.00019452,2]
[346416239,1734951058357,-500.0,0.00019178,2]
[346416240,1734951058367,-500.0,0.00019178,2]
[346416241,1734951058376,-500.0,0.00019178,2]
[346416242,1734951058385,-500.0,0.00019178,2]
[346416243,1734951058395,-868.2477079,0.00019194,2]
[346416244,1734951058404,-153.0,0.00019444,2]
[346416245,1734951058413,-153.0,0.00019444,2]
[346416246,1734951058423,-153.0,0.00019444,2]
[346416247,1734951058431,-153.0,0.00019444,2]
[346416248,1734951058440,-487.81400121,0.00019452,2]
[346416249,1734951058450,-500.0,0.00019452,2]
[346416250,1734951058459,-500.0,0.00019452,2]
[346416251,1734951058468,-500.0,0.00019452,2]
[346416252,1734951058477,-500.0,0.00019452,2]
[346416253,1734951058486,-500.0,0.00019452,2]
[346416254,1734951058495,-500.0,0.00019452,2]
[346416255,1734951058505,-500.0,0.00019452,2]
[346416256,1734951058514,-500.0,0.00019452,2]
[346416257,1734951058523,-500.0,0.00019452,2]
[346416258,1734951058532,-500.0,0.00019452,2]
[346416259,1734951058542,-500.0,0.00019452,2]
[346416260,1734951058551,-500.0,0.00019452,2]
[346416261,1734951058560,-500.0,0.00019452,2]
[346416262,1734951058570,-500.0,0.00019452,2]
[346416263,1734951058583,-500.0,0.00019452,2]
[346416264,1734951058592,-500.0,0.00019452,2]
[346416265,1734951058601,-604.26,0.00019452,2]
[346416266,1734951058611,-500.0,0.00019452,2]
[346416267,1734951058620,-500.0,0.00019452,2]
[346416268,1734951058630,-500.0,0.00019452,2]
[346416269,1734951058639,-500.0,0.00019452,2]
[346416270,1734951058651,-500.0,0.00019452,2]
[346416271,1734951058661,-500.0,0.00019452,2]
[346416272,1734951058670,-500.0,0.00019452,2]
[346416273,1734951058679,-500.0,0.00019452,2]
[346416274,1734951058689,-500.0,0.00019452,2]
[346416275,1734951058699,-500.0,0.00019452,2]
[346416276,1734951058708,-500.0,0.00019452,2]